fUSD/lending_fUSD_20260418
["ID","MTS","AMOUNT","RATE_DAILY","PERIOD"]
[420713359,1776483052992,-187.0,0.0001589,2]
[420713360,1776483053003,-2000.0,0.0001589,2]
[420713361,1776483053012,-2500.0,0.0001589,2]
[420713362,1776483053022,-1501.3104853,0.0001589,2]
[420713363,1776483053031,-2500.0,0.0001589,2]
[420713364,1776483053041,-4000.0,0.00015895,2]
[420713365,1776483053050,-150.22138901,0.000159,2]
[420713366,1776483053060,-150.0,0.000159,2]
[420713367,1776483053070,-1000.0,0.00015902,2]
[420713368,1776483053080,-813.39,0.00015945,2]
[420713369,1776483053089,-150.0,0.00015945,2]
[420713370,1776483053099,-150.0,0.00015945,2]
[420713371,1776483053109,-150.0,0.00015945,2]
[420713372,1776483053119,-150.0,0.00015945,2]
[420713373,1776483053128,-193.0,0.00015945,2]
[420713374,1776483053139,-213.0,0.00015997,3]
[420713375,1776483053152,-308.098818,0.00016,2]
[420713376,1776483053164,-1000.0,0.00016026,2]
[420713377,1776483053173,-1000.0,0.00016079,2]
[420713378,1776483053183,-19630.290934,0.00016115,2]
[420713379,1776483053192,-8095.88,0.00016116,2]
[420713380,1776483053203,-1219.72068197,0.00016164,2]
[420713381,1776483053214,-500.0,0.00016169,2]
[420713382,1776483053224,-728.84806172,0.00016169,2]
[420713383,1776483053236,-1043.21962048,0.0001617,2]
[420713384,1776483053247,-1023.0093809,0.0001617,2]
[420713385,1776483053257,-1016.58236587,0.0001617,2]
[420713386,1776483053267,-1088.92616107,0.0001617,2]
[420713387,1776483053276,-1079.06398933,0.0001617,2]
[420713388,1776483053287,-1057.91355896,0.0001617,2]
[420713389,1776483053297,-1044.3235072,0.0001617,2]
[420713390,1776483053307,-1039.9658689,0.0001617,2]
[420713391,1776483053316,-1083.25895327,0.0001617,2]
[420713392,1776483053326,-1140.17501232,0.0001617,2]
[420713393,1776483053335,-1124.05471541,0.0001617,2]
[420713394,1776483053347,-1008.26383475,0.0001617,2]
[420713395,1776483053357,-1013.249312,0.0001617,2]
[420713396,1776483053366,-1024.65727162,0.0001617,2]
[420713397,1776483053379,-1060.18007579,0.0001617,2]
[420713398,1776483053389,-1029.62538057,0.0001617,2]
[420713399,1776483053399,-1106.83035085,0.0001617,2]
[420713400,1776483053408,-1001.90643672,0.0001617,2]
[420713401,1776483053418,-1135.88128307,0.0001617,2]
[420713402,1776483053427,-1071.31461417,0.0001617,2]
[420713403,1776483053436,-1006.13919973,0.0001617,2]
[420713404,1776483053446,-1075.60350666,0.0001617,2]
[420713405,1776483053455,-1071.66962253,0.0001617,2]
[420713406,1776483053465,-1074.34905337,0.0001617,2]
[420713407,1776483053474,-1071.80156304,0.0001617,2]
[420713408,1776483053484,-1021.77698284,0.0001617,2]
[420713409,1776483053494,-1035.18759102,0.0001617,2]
[420713410,1776483053504,-1094.51837758,0.0001617,2]
[420713411,1776483053514,-1114.71627133,0.0001617,2]
[420713412,1776483053523,-1099.40310824,0.0001617,2]
[420713413,1776483053533,-1119.3812414,0.0001617,2]
[420713414,1776483053543,-1038.82769559,0.0001617,2]
[420713415,1776483053552,-1024.44528063,0.0001617,2]
[420713416,1776483053562,-1056.60659944,0.0001617,2]
[420713417,1776483053571,-1044.64383499,0.0001617,2]
[420713418,1776483053581,-1125.01889305,0.0001617,2]
[420713419,1776483053591,-1039.97580866,0.0001617,2]
[420713420,1776483053600,-1007.75430322,0.0001617,2]
[420713421,1776483053610,-1034.81163162,0.0001617,2]
[420713422,1776483053620,-1124.20840114,0.0001617,2]
[420713423,1776483053630,-1138.87901321,0.0001617,2]
[420713424,1776483053640,-1985.38402626,0.0001617,2]
[420713425,1776483053650,-150.0,0.00016186,2]
[420713426,1776483053659,-1000.0,0.00016235,2]
[420713427,1776483053669,-4000.0,0.00016282,2]
[420713428,1776483053679,-1265.0,0.00016284,2]
[420713429,1776483053690,-1219.0,0.00016284,2]
[420713430,1776483053700,-926.0,0.00016284,2]
[420713431,1776483053714,-1048.0,0.00016284,2]
[420713432,1776483053724,-6029.0,0.00016284,2]
[420713433,1776483053733,-159.0,0.0001629,2]
[420713434,1776483053742,-466.0,0.0001629,2]
[420713435,1776483053751,-517.0,0.0001629,2]
[420713436,1776483053761,-152.0,0.0001629,2]
[420713437,1776483053770,-437.0,0.0001629,2]
[420713438,1776483053780,-170.0,0.0001629,2]
[420713439,1776483053789,-200.0,0.0001629,2]
[420713440,1776483053800,-396.0,0.0001629,2]
[420713441,1776483053810,-556.0,0.0001629,2]
[420713442,1776483053819,-157.0,0.0001629,2]
[420713443,1776483053837,-150.0,0.00016298,2]
[420713444,1776483053849,-2000.0,0.00016384,2]
[420713445,1776483053859,-2000.0,0.000164,2]
[420713446,1776483053869,-764.29482285,0.000164,2]
[420713447,1776483053879,-201.60321564,0.00016428,2]
[420713448,1776483053890,-478.0,0.00016437,2]
[420713449,1776483053899,-500.0,0.00016437,2]
[420713450,1776483053909,-219.0,0.00016438,30]
[420713451,1776483053918,-677.12,0.00016438,2]
[420713452,1776483053928,-500.0,0.00016438,2]
[420713453,1776483053938,-498.95638836,0.00016438,2]
[420713454,1776483053947,-500.0,0.00016438,2]
[420713455,1776483053957,-517.91,0.00016438,2]
[420713456,1776483053966,-2500.0,0.00016438,2]
[420713457,1776483053977,-2500.0,0.00016438,2]
[420713458,1776483053986,-2500.0,0.00016438,2]
[420713459,1776483053996,-2500.0,0.00016438,2]
[420713460,1776483054006,-2500.0,0.00016438,2]
[420713461,1776483054016,-2500.0,0.00016438,2]
[420713462,1776483054025,-2500.0,0.00016438,2]
[420713463,1776483054035,-2500.0,0.00016438,2]
[420713464,1776483054044,-2500.0,0.00016438,2]
[420713465,1776483054054,-2500.0,0.00016438,2]
[420713466,1776483054063,-2500.0,0.00016438,2]
[420713467,1776483054073,-2500.0,0.00016438,2]
[420713468,1776483054083,-500.0,0.00016438,2]
[420713469,1776483054093,-500.0,0.00016438,2]
[420713470,1776483054102,-1136.26,0.00016438,2]
[420713471,1776483054112,-1429.03,0.00016438,2]
[420713472,1776483054122,-1846.35,0.00016438,2]
[420713473,1776483054132,-828.79,0.00016438,2]
[420713474,1776483054141,-2216.79,0.00016438,2]
[420713475,1776483054151,-1228.03,0.00016438,2]
[420713476,1776483054160,-534.58,0.00016438,2]
[420713477,1776483054171,-500.0,0.00016438,2]
[420713478,1776483054181,-500.0,0.00016438,2]
[420713479,1776483054192,-503.01,0.00016438,2]
[420713480,1776483054202,-250.0,0.00016438,5]
[420713481,1776483054213,-240.0,0.00016438,2]
[420713482,1776483054223,-1959.17,0.00016438,2]
[420713483,1776483054232,-900.0,0.00016438,2]
[420713484,1776483054242,-151.0,0.00016438,2]
[420713485,1776483054251,-152.0,0.00016438,2]
[420713486,1776483054261,-152.0,0.00016438,2]
[420713487,1776483054271,-152.0,0.00016438,2]
[420713488,1776483054281,-152.0,0.00016438,2]
[420713489,1776483054290,-240.0,0.00016438,2]
[420713490,1776483054300,-152.0,0.00016438,2]
[420713491,1776483054310,-1500.0,0.00016438,2]
[420713492,1776483054321,-1500.0,0.00016438,2]
[420713493,1776483054331,-1500.0,0.00016438,2]
[420713494,1776483054343,-1500.0,0.00016438,2]
[420713495,1776483054353,-1500.0,0.00016438,2]
[420713496,1776483054362,-1500.0,0.00016438,2]
[420713497,1776483054372,-1500.0,0.00016438,2]
[420713498,1776483054382,-1500.0,0.00016438,2]
[420713499,1776483054392,-1500.0,0.00016438,2]
[420713500,1776483054402,-1500.0,0.00016438,2]
[420713501,1776483054411,-1500.0,0.00016438,2]
[420713502,1776483054421,-1500.0,0.00016438,2]
[420713503,1776483054431,-1500.0,0.00016438,2]
[420713504,1776483054441,-1500.0,0.00016438,2]
[420713505,1776483054455,-1500.0,0.00016438,2]
[420713506,1776483054466,-1500.0,0.00016438,2]
[420713507,1776483054477,-1500.0,0.00016438,2]
[420713508,1776483054487,-1500.0,0.00016438,2]
[420713509,1776483054497,-1500.0,0.00016438,2]
[420713510,1776483054507,-1500.0,0.00016438,2]
[420713511,1776483054517,-1500.0,0.00016438,2]
[420713512,1776483054527,-1500.0,0.00016438,2]
[420713513,1776483054537,-1500.0,0.00016438,2]
[420713514,1776483054546,-1500.0,0.00016438,2]
[420713515,1776483054556,-1500.0,0.00016438,2]
[420713516,1776483054566,-1500.0,0.00016438,2]
[420713517,1776483054576,-1500.0,0.00016438,2]
[420713518,1776483054586,-1500.0,0.00016438,2]
[420713519,1776483054596,-1500.0,0.00016438,2]
[420713520,1776483054606,-1233.633106,0.00016438,2]
[420713521,1776483054617,-1071.98031639,0.00016438,2]
[420713522,1776483054628,-3000.0,0.00016438,2]
[420713523,1776483054639,-150.0,0.00016473,2]
[420713524,1776483054649,-1000.0,0.00016482,2]
[420713525,1776483054659,-500.0,0.00016489,4]
[420713526,1776483054669,-150.0,0.00016494,2]
[420713527,1776483054679,-150.0,0.00016494,2]
[420713528,1776483054689,-150.0,0.00016494,2]
[420713529,1776483054698,-150.0,0.00016494,2]
[420713530,1776483054708,-218.5,0.000165,4]
[420713531,1776483054718,-455.05,0.00016616,2]
[420713532,1776483054728,-302.0,0.00016644,2]
[420713533,1776483054737,-4000.0,0.0001667,2]
[420713534,1776483054747,-3500.0,0.00016986,2]
[420713535,1776483054757,-350.0,0.00017,2]
[420713536,1776483054767,-4000.0,0.00017058,2]
[420713537,1776483054777,-500.0,0.00017236,5]
[420713538,1776483054787,-159.0,0.0001729,2]
[420713539,1776483054796,-466.0,0.0001729,2]
[420713540,1776483054806,-517.0,0.0001729,2]
[420713541,1776483054815,-152.0,0.0001729,2]
[420713542,1776483054825,-437.0,0.0001729,2]
[420713543,1776483054834,-170.0,0.0001729,2]
[420713544,1776483054844,-200.0,0.0001729,2]
[420713545,1776483054853,-396.0,0.0001729,2]
[420713546,1776483054863,-556.0,0.0001729,2]
[420713547,1776483054872,-157.0,0.0001729,2]
[420713548,1776483054883,-13631.8303,0.00017325,2]
[420713549,1776483054894,-4000.0,0.00017534,2]
[420713550,1776483054905,-213.0,0.00017918,3]
[420713551,1776483054915,-500.0,0.00017983,5]
[420713552,1776483054926,-200.0,0.00018,2]
[420713553,1776483054937,-4500.0,0.00018082,2]
[420713554,1776483054947,-230.0,0.000181,2]
[420713555,1776483054957,-160.59111867,0.0001829,2]
[420713556,1776483054967,-466.0,0.0001829,2]
[420713557,1776483054977,-517.0,0.0001829,2]
[420713558,1776483054987,-152.0,0.0001829,2]
[420713559,1776483054996,-437.0,0.0001829,2]
[420713560,1776483055006,-170.0,0.0001829,2]
[420713561,1776483055016,-200.0,0.0001829,2]
[420713562,1776483055025,-396.0,0.0001829,2]
[420713563,1776483055035,-556.0,0.0001829,2]
[420713564,1776483055044,-157.0,0.0001829,2]
[420713565,1776483055054,-292.0,0.00018291,2]
[420713566,1776483055064,-375.0,0.00018488,2]
[420713567,1776483055073,-5000.0,0.0001863,2]
[420713568,1776483055086,-3687.26020707,0.00018647,35]
[420713569,1776483055095,-988.0,0.00018716,2]
[420713570,1776483055106,-500.0,0.0001873,6]
[420713571,1776483055116,-158.0,0.00018742,3]
[420713572,1776483055128,-400.0,0.00019,2]
[420713573,1776483055139,-2000.0,0.00019124,7]
[420713574,1776483055149,-500.0,0.00019177,2]
[420713575,1776483055159,-2500.0,0.00019177,2]
[420713576,1776483055169,-3000.0,0.00019178,2]
[420713577,1776483055179,-3000.0,0.00019178,7]
[420713578,1776483055189,-1000.0,0.00019178,12]
[420713579,1776483055199,-151.0,0.00019178,2]
[420713580,1776483055210,-151.414213,0.00019178,2]
[420713581,1776483055220,-151.0,0.00019178,2]
[420713582,1776483055230,-151.0,0.00019178,2]
[420713583,1776483055240,-151.0,0.00019178,2]
[420713584,1776483055250,-151.0,0.00019178,2]
[420713585,1776483055261,-151.0,0.00019178,2]
[420713586,1776483055271,-151.0,0.00019178,2]
[420713587,1776483055282,-163.989428,0.00019178,2]
[420713588,1776483055292,-5500.0,0.00019178,2]
[420713589,1776483055302,-1265.0,0.00019284,2]
[420713590,1776483055312,-1219.0,0.00019284,2]
[420713591,1776483055324,-926.0,0.00019284,2]
[420713592,1776483055334,-1048.0,0.00019284,2]
[420713593,1776483055344,-6029.0,0.00019284,2]
[420713594,1776483055353,-466.0,0.0001929,2]
[420713595,1776483055362,-517.0,0.0001929,2]
[420713596,1776483055372,-166.3869944,0.0001929,2]
[420713597,1776483055382,-437.0,0.0001929,2]
[420713598,1776483055393,-170.0,0.0001929,2]
[420713599,1776483055403,-200.0,0.0001929,2]
[420713600,1776483055412,-396.0,0.0001929,2]
[420713601,1776483055423,-556.0,0.0001929,2]
[420713602,1776483055432,-157.0,0.0001929,2]
[420713603,1776483055442,-593.0,0.00019382,2]
[420713604,1776483055452,-500.0,0.00019478,7]
[420713605,1776483055461,-2875.39334953,0.00019726,2]
[420713606,1776483055471,-19630.290934,0.00019735,2]
[420713607,1776483055482,-213.0,0.0001984,3]
[420713608,1776483055492,-500.0,0.00019999,2]
[420713609,1776483055502,-150.0,0.0002,2]
[420713610,1776483055512,-870.0,0.0002,2]
[420713611,1776483055522,-200.0,0.0002,2]
[420713612,1776483055532,-150.09536837,0.0002,20]
[420713613,1776483055543,-5024.0,0.0002,2]
[420713614,1776483055554,-1797.0,0.0002,2]
[420713615,1776483055564,-2000.0,0.000201,2]
[420713616,1776483055575,-500.0,0.00020225,7]
[420713617,1776483055586,-466.0,0.0002029,2]
[420713618,1776483055596,-517.0,0.0002029,2]
[420713619,1776483055607,-437.0,0.0002029,2]
[420713620,1776483055618,-170.0,0.0002029,2]
[420713621,1776483055629,-200.0,0.0002029,2]
[420713622,1776483055640,-396.0,0.0002029,2]
[420713623,1776483055650,-556.0,0.0002029,2]
[420713624,1776483055660,-157.0,0.0002029,2]
[420713625,1776483055671,-813.39,0.00020384,2]
[420713626,1776483055681,-150.0,0.0002052,3]
[420713627,1776483055691,-21721.76,0.00020548,2]
[420713628,1776483055939,-500.0,0.00020972,8]
[420713629,1776483055962,-450.0,0.00021,2]
[420713630,1776483055972,-470.0,0.0002129,2]
[420713631,1776483055982,-523.38500938,0.0002129,2]
[420713632,1776483055992,-437.0,0.0002129,2]
[420713633,1776483056002,-175.78199496,0.0002129,2]
[420713634,1776483056011,-209.99223656,0.0002129,2]
[420713635,1776483056021,-410.20419396,0.0002129,2]
[420713636,1776483056031,-567.40106471,0.0002129,2]
[420713637,1776483056040,-169.97212277,0.0002129,2]
[420713638,1776483056050,-2000.0,0.00021316,7]
[420713639,1776483056059,-6437.37,0.0002137,2]
[420713640,1776483056069,-500.0,0.00021719,9]
[420713641,1776483056078,-213.0,0.00021762,3]
[420713642,1776483056088,-500.0,0.00021916,2]
[420713643,1776483056098,-677.12,0.00021917,2]
[420713644,1776483056107,-500.0,0.00021917,2]
[420713645,1776483056116,-500.0,0.00021917,2]
[420713646,1776483056126,-517.91,0.00021917,2]
[420713647,1776483056135,-500.0,0.00021917,2]
[420713648,1776483056144,-500.0,0.00021917,2]
[420713649,1776483056154,-1136.26,0.00021917,2]
[420713650,1776483056164,-1429.03,0.00021917,2]
[420713651,1776483056173,-1846.35,0.00021917,2]
[420713652,1776483056183,-828.79,0.00021917,2]
[420713653,1776483056192,-2216.79,0.00021917,2]
[420713654,1776483056203,-1228.03,0.00021917,2]
[420713655,1776483056212,-534.58,0.00021917,2]
[420713656,1776483056222,-500.0,0.00021917,2]
[420713657,1776483056233,-503.01,0.00021917,2]
[420713658,1776483056245,-5000.0,0.00021918,2]
[420713659,1776483056256,-151.0,0.00021918,2]
[420713660,1776483056267,-151.0,0.00021918,2]
[420713661,1776483056276,-151.0,0.00021918,2]
[420713662,1776483056285,-151.0,0.00021918,2]
[420713663,1776483056296,-151.0,0.00021918,2]
[420713664,1776483056306,-151.000009,0.00021918,2]
[420713665,1776483056316,-250.0,0.00021918,2]
[420713666,1776483056327,-250.0,0.00021918,2]
[420713667,1776483056337,-250.0,0.00021918,2]
[420713668,1776483056347,-250.0,0.00021918,2]
[420713669,1776483056356,-250.0,0.00021918,2]
[420713670,1776483056366,-250.0,0.00021918,2]
[420713671,1776483056376,-250.0,0.00021918,2]
[420713672,1776483056386,-250.0,0.00021918,2]
[420713673,1776483056396,-250.0,0.00021918,2]
[420713674,1776483056406,-250.0,0.00021918,2]
[420713675,1776483056417,-250.0,0.00021918,2]
[420713676,1776483056427,-250.0,0.00021918,2]
[420713677,1776483056437,-250.0,0.00021918,2]
[420713678,1776483056448,-250.0,0.00021918,2]
[420713679,1776483056458,-250.0,0.00021918,2]
[420713680,1776483056467,-250.0,0.00021918,2]
[420713681,1776483056477,-250.0,0.00021918,2]
[420713682,1776483056487,-250.0,0.00021918,2]
[420713683,1776483056498,-250.0,0.00021918,2]
[420713684,1776483056507,-250.0,0.00021918,2]
[420713685,1776483056519,-1200.0,0.00021918,2]
[420713686,1776483056530,-1200.0,0.00021918,2]
[420713687,1776483056540,-1200.0,0.00021918,2]
[420713688,1776483056550,-1200.0,0.00021918,2]
[420713689,1776483056559,-1200.0,0.00021918,2]
[420713690,1776483056569,-1200.0,0.00021918,2]
[420713691,1776483056579,-1200.0,0.00021918,2]
[420713692,1776483056588,-1200.0,0.00021918,2]
[420713693,1776483056599,-500.0,0.00021918,120]
[420713694,1776483056609,-202.65740436,0.00022,2]
[420713695,1776483056620,-1265.0,0.00022284,2]
[420713696,1776483056630,-1219.0,0.00022284,2]
[420713697,1776483056640,-926.0,0.00022284,2]
[420713698,1776483056650,-1048.0,0.00022284,2]
[420713699,1776483056659,-6029.0,0.00022284,2]
[420713700,1776483056669,-154.46996351,0.00022466,2]
[420713701,1776483056679,-500.0,0.00022466,9]
[420713702,1776483056688,-500.0,0.00022575,120]
[420713703,1776483056698,-425.14728374,0.00022703,30]
[420713704,1776483056708,-425.14728374,0.00022703,30]
[420713705,1776483056717,-500.0,0.00023,2]
[420713706,1776483056728,-160.0,0.00023,7]
[420713707,1776483056738,-500.0,0.00023068,120]
[420713708,1776483056747,-500.0,0.00023213,10]
[420713709,1776483056756,-19630.290934,0.00023355,2]
[420713710,1776483056766,-2000.0,0.00023508,7]
[420713711,1776483056776,-500.0,0.00023644,120]
[420713712,1776483056785,-4393.9481527,0.00023674,49]
[420713713,1776483056795,-213.0,0.00023683,3]
[420713714,1776483056805,-2000.0,0.000238,2]
[420713715,1776483056816,-158.0,0.00023958,3]
[420713716,1776483056826,-500.0,0.00023961,11]
[420713717,1776483056836,-500.0,0.00024219,120]
[420713718,1776483056846,-6430.46045124,0.00024249,2]
[420713719,1776483056855,-1000.0,0.00024658,2]
[420713720,1776483056864,-207.38,0.00024658,2]
[420713721,1776483056874,-151.0,0.00024658,2]
[420713722,1776483056884,-151.0,0.00024658,2]
[420713723,1776483056893,-151.0,0.00024658,2]
[420713724,1776483056903,-151.0,0.00024658,2]
[420713725,1776483056913,-151.0,0.00024658,2]
[420713726,1776483056923,-153.303227,0.00024658,2]
[420713727,1776483056932,-151.0,0.00024658,2]
[420713728,1776483056942,-151.0,0.00024658,2]
[420713729,1776483056951,-151.0,0.00024658,2]
[420713730,1776483056961,-151.0,0.00024658,2]
[420713731,1776483056971,-151.852926,0.00024658,2]
[420713732,1776483056980,-150.0,0.00024658,2]
[420713733,1776483056990,-500.0,0.00024708,11]
[420713734,1776483057000,-500.0,0.00024795,120]
[420713735,1776483057010,-813.39,0.00024822,2]
[420713736,1776483057020,-500.0,0.00024899,2]
[420713737,1776483057030,-677.12,0.00024899,2]
[420713738,1776483057040,-677.12,0.00024899,2]
[420713739,1776483057049,-677.12,0.00024899,2]
[420713740,1776483057058,-500.0,0.00024899,2]
[420713741,1776483057068,-500.0,0.00024899,2]
[420713742,1776483057077,-500.0,0.00024899,2]
[420713743,1776483057086,-573.69944797,0.00024899,2]
[420713744,1776483057096,-517.91,0.00024899,2]
[420713745,1776483057105,-517.91,0.00024899,2]
[420713746,1776483057115,-517.91,0.00024899,2]
[420713747,1776483057125,-500.0,0.00024899,2]
[420713748,1776483057134,-2500.0,0.00024899,2]
[420713749,1776483057143,-1136.26,0.00024899,2]
[420713750,1776483057153,-1136.26,0.00024899,2]
[420713751,1776483057163,-1136.26,0.00024899,2]
[420713752,1776483057172,-828.79,0.00024899,2]
[420713753,1776483057182,-828.79,0.00024899,2]
[420713754,1776483057192,-828.79,0.00024899,2]
[420713755,1776483057201,-268.91101194,0.00024899,2]
[420713756,1776483057211,-455.3590822,0.00024899,2]
[420713757,1776483057220,-500.0,0.00024899,2]
[420713758,1776483057230,-500.0,0.00024899,2]
[420713759,1776483057239,-500.0,0.00024899,2]
[420713760,1776483057249,-503.01,0.00024899,2]
[420713761,1776483057259,-503.01,0.00024899,2]
[420713762,1776483057269,-503.01,0.00024899,2]
[420713763,1776483057278,-316.55,0.000249,7]
[420713764,1776483057288,-68269.668688,0.000249,3]
[420713765,1776483057297,-446.91458934,0.00024978,2]
[420713766,1776483057307,-10000.0,0.00025,2]
[420713767,1776483057316,-550.0,0.00025,2]
[420713768,1776483057327,-160.0,0.00025,3]
[420713769,1776483057337,-1219.0,0.00025284,2]
[420713770,1776483057346,-240.101,0.00025284,2]
[420713771,1776483057357,-1048.0,0.00025284,2]
[420713772,1776483057367,-6029.0,0.00025284,2]
[420713773,1776483057377,-500.0,0.0002537,120]
[420713774,1776483057389,-635.97,0.00025444,7]
[420713775,1776483057399,-295.48,0.00025444,30]
[420713776,1776483057410,-500.0,0.00025455,12]
[420713777,1776483057419,-213.0,0.00025605,3]
[420713778,1776483057430,-2000.0,0.000257,7]
[420713779,1776483057442,-316.55,0.000257,7]
[420713780,1776483057452,-500.0,0.00025821,120]
[420713781,1776483057462,-150.0,0.0002589,2]
[420713782,1776483057471,-395.81035114,0.00025959,2]
[420713783,1776483057481,-500.0,0.00026,120]
[420713784,1776483057491,-500.0,0.00026202,13]
[420713785,1776483057501,-616.89,0.00026208,7]
[420713786,1776483057511,-500.0,0.00026561,120]
[420713787,1776483057521,-500.0,0.00026595,2]
[420713788,1776483057531,-500.0,0.00026595,2]
[420713789,1776483057541,-1429.03,0.00026595,2]
[420713790,1776483057551,-1846.35,0.00026595,2]
[420713791,1776483057563,-2216.79,0.00026595,2]
[420713792,1776483057575,-1228.03,0.00026595,2]
[420713793,1776483057585,-534.58,0.00026595,2]
[420713794,1776483057599,-316.55,0.000266,7]
[420713795,1776483057609,-1100.20395712,0.00026844,2]
[420713796,1776483057619,-500.0,0.00026949,13]
[420713797,1776483057629,-597.81,0.00026971,7]
[420713798,1776483057639,-19630.290934,0.00026974,2]
[420713799,1776483057650,-600.0,0.00027,2]
[420713800,1776483057660,-500.0,0.00027096,120]
[420713801,1776483057671,-150.0,0.00027185,2]
[420713802,1776483057682,-316.55,0.000272,7]
[420713803,1776483057693,-500.0,0.00027397,2]
[420713804,1776483057703,-1000.0,0.00027397,20]
[420713805,1776483057712,-300.0,0.00027397,2]
[420713806,1776483057722,-207.38,0.00027397,2]
[420713807,1776483057731,-151.0,0.00027397,2]
[420713808,1776483057741,-151.0,0.00027397,2]
[420713809,1776483057750,-151.0,0.00027397,2]
[420713810,1776483057760,-151.0,0.00027397,2]
[420713811,1776483057770,-151.0,0.00027397,2]
[420713812,1776483057779,-151.0,0.00027397,2]
[420713813,1776483057789,-151.0,0.00027397,2]
[420713814,1776483057798,-151.0,0.00027397,2]
[420713815,1776483057808,-151.0,0.00027397,2]
[420713816,1776483057819,-151.0,0.00027397,2]
[420713817,1776483057829,-151.0,0.00027397,2]
[420713818,1776483057840,-151.0,0.00027397,2]
[420713819,1776483057849,-151.0,0.00027397,2]
[420713820,1776483057859,-2000.0,0.000275,2]
[420713821,1776483057869,-213.0,0.00027527,3]
[420713822,1776483057878,-500.0,0.00027671,120]
[420713823,1776483057889,-500.0,0.00027694,4]
[420713824,1776483057899,-501.08,0.00027694,4]
[420713825,1776483057909,-500.59,0.00027696,4]
[420713826,1776483057919,-500.0,0.00027697,14]
[420713827,1776483057929,-2000.0,0.00027892,21]
[420713828,1776483057938,-507.065414,0.00028,120]
[420713829,1776483057948,-500.0,0.00028247,120]
[420713830,1776483057957,-1215.541,0.00028284,2]
[420713831,1776483057967,-500.0,0.00028444,15]
[420713832,1776483057976,-1500.0,0.00028542,15]
[420713833,1776483057986,-150.0,0.00028544,2]
[420713834,1776483057995,-11018.43543233,0.00028581,2]
[420713835,1776483058005,-315.86,0.000286,14]
[420713836,1776483058014,-4759.45629475,0.000287,63]
[420713837,1776483058023,-150.0,0.00028712,22]
[420713838,1776483058033,-489.17282625,0.00028767,2]
[420713839,1776483058042,-206.0,0.0002882,30]
[420713840,1776483058051,-500.0,0.00028822,120]
[420713841,1776483058061,-650.0,0.00029,2]
[420713842,1776483058439,-500.0,0.00029123,7]
[420713843,1776483058457,-2500.0,0.00029123,5]
[420713844,1776483058468,-158.0,0.00029174,3]
[420713845,1776483058480,-500.0,0.00029191,15]
[420713846,1776483058490,-813.39,0.0002926,2]
[420713847,1776483058500,-500.0,0.00029397,120]
[420713848,1776483058510,-316.55,0.000294,14]
[420713849,1776483058521,-213.0,0.00029449,3]
[420713850,1776483058531,-2000.0,0.00029536,21]
[420713851,1776483058541,-173.41781676,0.00029751,66]
[420713852,1776483058551,-500.0,0.00029938,16]
[420713853,1776483058561,-150.0,0.00029971,2]
[420713854,1776483058572,-500.0,0.00029973,120]
[420713855,1776483058581,-500.0,0.0003,2]
[420713856,1776483058592,-155.0,0.0003,2]
[420713857,1776483058601,-200.0,0.0003,30]
[420713858,1776483058611,-160.0,0.0003,120]